[Event "Early-Titled-Tuesday-Blitz-January-23-2024"]
[Site "Chess.com"]
[Date "2024.01.23"]
[Round "11"]
[White "Bigfish1995"]
[Black "Hikaru"]
[Result "1/2-1/2"]
[WhiteElo "3142"]
[BlackElo "3306"]
[TimeControl "180+1"]
[EndTime "10:03:14 PST"]
[Termination "Game drawn by repetition"]

1. e4 {[%clk 0:03:00]} 1... e5 {[%clk 0:02:59.9]} 2. Nf3 {[%clk 0:03:00.1]} 2...
Nc6 {[%clk 0:03:00.3]} 3. Bb5 {[%clk 0:03:00.3]} 3... Nf6 {[%clk 0:03:00.8]} 4.
O-O {[%clk 0:02:59.6]} 4... Nxe4 {[%clk 0:03:01.2]} 5. Re1 {[%clk 0:02:59.7]}
5... Nd6 {[%clk 0:03:01.9]} 6. Nxe5 {[%clk 0:02:59.8]} 6... Be7 {[%clk
0:03:01.7]} 7. Bf1 {[%clk 0:02:59.9]} 7... Nxe5 {[%clk 0:02:58.9]} 8. Rxe5
{[%clk 0:02:57.9]} 8... O-O {[%clk 0:02:59.6]} 9. d4 {[%clk 0:02:58]} 9... Bf6
{[%clk 0:02:57.2]} 10. Re2 {[%clk 0:02:57.6]} 10... Nc4 {[%clk 0:02:54.8]} 11.
b3 {[%clk 0:02:52.4]} 11... Nb6 {[%clk 0:02:54.6]} 12. a4 {[%clk 0:02:51.9]}
12... a5 {[%clk 0:02:50.4]} 13. Nc3 {[%clk 0:02:46.9]} 13... d5 {[%clk 0:02:49]}
14. Ba3 {[%clk 0:02:45.6]} 14... Re8 {[%clk 0:02:49.5]} 15. Rxe8+ {[%clk
0:02:45.1]} 15... Qxe8 {[%clk 0:02:50.4]} 16. Bc5 {[%clk 0:02:42.9]} 16... Be6
{[%clk 0:02:43.4]} 17. Bxb6 {[%clk 0:02:34.3]} 17... cxb6 {[%clk 0:02:43.4]} 18.
Nb5 {[%clk 0:02:34.8]} 18... Qd7 {[%clk 0:02:38.5]} 19. Bd3 {[%clk 0:02:32.9]}
19... Bg4 {[%clk 0:02:33]} 20. Qd2 {[%clk 0:02:31.7]} 20... Re8 {[%clk
0:02:33.1]} 21. Re1 {[%clk 0:02:24.9]} 21... Rxe1+ {[%clk 0:02:28.2]} 22. Qxe1
{[%clk 0:02:25]} 22... g6 {[%clk 0:02:28.8]} 23. h3 {[%clk 0:02:23.3]} 23... Be6
{[%clk 0:02:28.7]} 24. Qe3 {[%clk 0:02:22.5]} 24... Qd8 {[%clk 0:02:27.5]} 25.
Qf4 {[%clk 0:02:20.8]} 25... Bd7 {[%clk 0:02:23.5]} 26. Nc3 {[%clk 0:02:02]}
26... Be6 {[%clk 0:02:16.5]} 27. Nb5 {[%clk 0:01:59.6]} 27... Bd7 {[%clk
0:02:16.7]} 28. Nc3 {[%clk 0:01:59]} 28... Be6 {[%clk 0:02:17]} 29. Nb5 {[%clk
0:01:56]} 1/2-1/2

[Event "Early-Titled-Tuesday-Blitz-January-23-2024"]
[Site "Chess.com"]
[Date "2024.01.23"]
[Round "11"]
[White "Saraisitave"]
[Black "Larina_Maria"]
[Result "1-0"]
[WhiteElo "2305"]
[BlackElo "2180"]
[TimeControl "180+1"]
[EndTime "10:04:10 PST"]
[Termination "Saraisitave won by checkmate"]

1. e4 {[%clk 0:03:00.9]} 1... c6 {[%clk 0:02:59.7]} 2. d4 {[%clk 0:03:00.3]}
2... d5 {[%clk 0:02:59.6]} 3. Nc3 {[%clk 0:03:01]} 3... dxe4 {[%clk 0:02:57.9]}
4. Nxe4 {[%clk 0:03:01.5]} 4... Nf6 {[%clk 0:02:58.4]} 5. Nxf6+ {[%clk
0:02:42.3]} 5... exf6 {[%clk 0:02:59.3]} 6. Nf3 {[%clk 0:02:41.3]} 6... Bg4
{[%clk 0:02:55.9]} 7. Bd3 {[%clk 0:02:41]} 7... Bd6 {[%clk 0:02:55.6]} 8. c3
{[%clk 0:02:40.5]} 8... O-O {[%clk 0:02:55.4]} 9. Be3 {[%clk 0:02:40.2]} 9... f5
{[%clk 0:02:32.7]} 10. h3 {[%clk 0:02:29]} 10... f4 {[%clk 0:02:32.4]} 11. hxg4
{[%clk 0:02:26.8]} 11... fxe3 {[%clk 0:02:23.6]} 12. Bxh7+ {[%clk 0:02:25.9]}
12... Kh8 {[%clk 0:02:22.9]} 13. Qd3 {[%clk 0:01:38.2]} 13... g6 {[%clk
0:01:51.8]} 14. Bxg6+ {[%clk 0:01:31.4]} 14... Kg7 {[%clk 0:01:48]} 15. Rh7+
{[%clk 0:01:16.5]} 15... Kg8 {[%clk 0:01:47.9]} 16. Bxf7+ {[%clk 0:01:13.3]}
16... Rxf7 {[%clk 0:01:39.8]} 17. Qg6+ {[%clk 0:01:13.9]} 17... Kf8 {[%clk
0:01:39.8]} 18. Qxf7# {[%clk 0:01:14.2]} 1-0

[Event "Early-Titled-Tuesday-Blitz-January-23-2024"]
[Site "Chess.com"]
[Date "2024.01.23"]
[Round "11"]
[White "PepeCuenca"]
[Black "Iunusovnuriddin"]
[Result "1-0"]
[WhiteElo "2681"]
[BlackElo "2309"]
[TimeControl "180+1"]
[EndTime "10:04:22 PST"]
[Termination "PepeCuenca won by resignation"]

1. d4 {[%clk 0:03:00.9]} 1... Nf6 {[%clk 0:02:54.2]} 2. Bf4 {[%clk 0:02:59.6]}
2... c5 {[%clk 0:02:53.6]} 3. d5 {[%clk 0:02:59.7]} 3... Qb6 {[%clk 0:02:53.1]}
4. b3 {[%clk 0:02:53]} 4... Qb4+ {[%clk 0:02:51.7]} 5. Bd2 {[%clk 0:02:52.5]}
5... Qd4 {[%clk 0:02:51.8]} 6. Nc3 {[%clk 0:02:49.6]} 6... Nxd5 {[%clk
0:02:51.3]} 7. Nxd5 {[%clk 0:02:43.2]} 7... Qxd5 {[%clk 0:02:51.9]} 8. c4 {[%clk
0:02:42.5]} 8... Qh5 {[%clk 0:02:50.7]} 9. Bc3 {[%clk 0:02:42.5]} 9... Nc6
{[%clk 0:02:49.8]} 10. Nf3 {[%clk 0:02:43.2]} 10... d6 {[%clk 0:02:48.1]} 11. e3
{[%clk 0:02:43.5]} 11... Bg4 {[%clk 0:02:42.8]} 12. Be2 {[%clk 0:02:43.8]} 12...
e6 {[%clk 0:02:42.8]} 13. h3 {[%clk 0:02:43.7]} 13... O-O-O {[%clk 0:02:17.3]}
14. O-O {[%clk 0:02:43]} 14... Bxf3 {[%clk 0:02:17.4]} 15. Bxf3 {[%clk
0:02:43.9]} 15... Qg6 {[%clk 0:02:17.8]} 16. a3 {[%clk 0:02:43.4]} 16... Ne5
{[%clk 0:02:17.3]} 17. Be2 {[%clk 0:02:43.3]} 17... Be7 {[%clk 0:02:13.4]} 18.
b4 {[%clk 0:02:43.4]} 18... Bf6 {[%clk 0:02:12.8]} 19. Rc1 {[%clk 0:02:42.8]}
19... h5 {[%clk 0:02:04.8]} 20. Qa4 {[%clk 0:02:41.3]} 20... Kb8 {[%clk
0:02:03.6]} 21. Rb1 {[%clk 0:02:40.4]} 21... b6 {[%clk 0:01:40]} 22. Qa6 {[%clk
0:02:32.7]} 22... Nd7 {[%clk 0:00:52.2]} 23. Bf3 {[%clk 0:02:24.7]} 23... d5
{[%clk 0:00:52.3]} 24. cxd5 {[%clk 0:02:25.4]} 1-0

[Event "Early-Titled-Tuesday-Blitz-January-23-2024"]
[Site "Chess.com"]
[Date "2024.01.23"]
[Round "11"]
[White "Boninknights"]
[Black "Orphanator2009"]
[Result "1-0"]
[WhiteElo "2360"]
[BlackElo "2449"]
[TimeControl "180+1"]
[EndTime "10:05:08 PST"]
[Termination "Boninknights won by resignation"]

1. b3 {[%clk 0:02:59.9]} 1... f5 {[%clk 0:02:56.4]} 2. Bb2 {[%clk 0:02:58.1]}
2... Nf6 {[%clk 0:02:56.8]} 3. Bxf6 {[%clk 0:02:56.5]} 3... exf6 {[%clk
0:02:55.1]} 4. e3 {[%clk 0:02:55.2]} 4... g6 {[%clk 0:02:52.4]} 5. c4 {[%clk
0:02:53.4]} 5... Bg7 {[%clk 0:02:52.9]} 6. Nc3 {[%clk 0:02:52.4]} 6... O-O
{[%clk 0:02:53.4]} 7. g3 {[%clk 0:02:48.4]} 7... b6 {[%clk 0:02:46.6]} 8. Bg2
{[%clk 0:02:47.8]} 8... Nc6 {[%clk 0:02:46.9]} 9. Nge2 {[%clk 0:02:46.7]} 9...
Bb7 {[%clk 0:02:46.9]} 10. O-O {[%clk 0:02:45.4]} 10... Re8 {[%clk 0:02:46.5]}
11. b4 {[%clk 0:02:42.3]} 11... Rb8 {[%clk 0:02:45.6]} 12. b5 {[%clk 0:02:40.7]}
12... Ne5 {[%clk 0:02:44.6]} 13. Bxb7 {[%clk 0:02:37.3]} 13... Rxb7 {[%clk
0:02:45.5]} 14. d3 {[%clk 0:02:35.7]} 14... d6 {[%clk 0:02:30.7]} 15. a4 {[%clk
0:02:27.4]} 15... Qd7 {[%clk 0:02:24.1]} 16. Nf4 {[%clk 0:02:21.1]} 16... Bh6
{[%clk 0:02:22.5]} 17. Nfd5 {[%clk 0:02:14.8]} 17... Kg7 {[%clk 0:02:20.2]} 18.
a5 {[%clk 0:02:12.4]} 18... Rbb8 {[%clk 0:02:14]} 19. f4 {[%clk 0:02:06.8]}
19... Nf7 {[%clk 0:02:05.1]} 20. Qc2 {[%clk 0:01:58.4]} 20... Nd8 {[%clk
0:01:44.6]} 21. axb6 {[%clk 0:01:52.3]} 21... axb6 {[%clk 0:01:44.5]} 22. Ra7
{[%clk 0:01:48.9]} 22... Ne6 {[%clk 0:01:44.4]} 23. Rfa1 {[%clk 0:01:43.1]}
23... Kf7 {[%clk 0:01:34.6]} 24. Qb2 {[%clk 0:01:41.1]} 24... Bg7 {[%clk
0:01:33.3]} 25. R1a6 {[%clk 0:01:38]} 25... Qc8 {[%clk 0:01:19.2]} 26. Nxb6
{[%clk 0:01:31]} 26... Qd8 {[%clk 0:01:17.1]} 27. Nbd5 {[%clk 0:01:28.9]} 27...
Kg8 {[%clk 0:01:12.5]} 28. Rc6 {[%clk 0:01:27]} 28... Nc5 {[%clk 0:01:12]} 29.
Rcxc7 {[%clk 0:01:23.8]} 1-0

[Event "Early-Titled-Tuesday-Blitz-January-23-2024"]
[Site "Chess.com"]
[Date "2024.01.23"]
[Round "11"]
[White "Irishchessman16"]
[Black "DrCeltic"]
[Result "1-0"]
[WhiteElo "2515"]
[BlackElo "2590"]
[TimeControl "180+1"]
[EndTime "10:05:11 PST"]
[Termination "Irishchessman16 won by resignation"]

1. d4 {[%clk 0:03:00.9]} 1... d5 {[%clk 0:02:59.5]} 2. c4 {[%clk 0:03:00.8]}
2... c6 {[%clk 0:03:00.2]} 3. Nf3 {[%clk 0:03:00.3]} 3... Nf6 {[%clk 0:03:00.8]}
4. Nc3 {[%clk 0:02:58.3]} 4... dxc4 {[%clk 0:03:01.1]} 5. e4 {[%clk 0:02:57.9]}
5... b5 {[%clk 0:03:01.2]} 6. e5 {[%clk 0:02:57.9]} 6... Nd5 {[%clk 0:03:01.5]}
7. Ng5 {[%clk 0:02:57.8]} 7... Bf5 {[%clk 0:02:54.4]} 8. Qf3 {[%clk 0:02:52.6]}
8... e6 {[%clk 0:02:52.2]} 9. h4 {[%clk 0:02:50.3]} 9... b4 {[%clk 0:02:37]} 10.
Nce4 {[%clk 0:02:43]} 10... h6 {[%clk 0:02:34]} 11. Nxf7 {[%clk 0:02:41.6]}
11... Kxf7 {[%clk 0:02:34.1]} 12. g4 {[%clk 0:02:40.7]} 12... g6 {[%clk
0:02:24.6]} 13. gxf5 {[%clk 0:02:23.6]} 13... exf5 {[%clk 0:02:20.8]} 14. h5
{[%clk 0:02:21.8]} 14... Ke6 {[%clk 0:01:58.1]} 15. hxg6 {[%clk 0:02:19.5]}
15... Qe8 {[%clk 0:01:31.3]} 16. Bh3 {[%clk 0:02:08.1]} 16... Qxg6 {[%clk
0:01:25]} 17. Ng3 {[%clk 0:02:07.9]} 17... Ne7 {[%clk 0:01:21]} 18. Bd2 {[%clk
0:01:59.8]} 18... a5 {[%clk 0:01:17.3]} 19. O-O-O {[%clk 0:01:58.1]} 19... Bg7
{[%clk 0:01:13.1]} 20. Rhg1 {[%clk 0:01:57.1]} 20... Qf7 {[%clk 0:00:57]} 21.
Nh5 {[%clk 0:01:31.1]} 21... Rg8 {[%clk 0:00:49.6]} 22. Nf4+ {[%clk 0:01:29.9]}
1-0

[Event "Early-Titled-Tuesday-Blitz-January-23-2024"]
[Site "Chess.com"]
[Date "2024.01.23"]
[Round "11"]
[White "Kostukov_Alex"]
[Black "Chesstiger64"]
[Result "1-0"]
[WhiteElo "2298"]
[BlackElo "2208"]
[TimeControl "180+1"]
[EndTime "10:05:20 PST"]
[Termination "Kostukov_Alex won by checkmate"]

1. g3 {[%clk 0:02:57.5]} 1... e5 {[%clk 0:02:50.8]} 2. c4 {[%clk 0:02:56.5]}
2... Nc6 {[%clk 0:02:51]} 3. Bg2 {[%clk 0:02:56.9]} 3... Bc5 {[%clk 0:02:50.5]}
4. Nc3 {[%clk 0:02:53.6]} 4... d6 {[%clk 0:02:50.5]} 5. e3 {[%clk 0:02:53.9]}
5... a6 {[%clk 0:02:50.9]} 6. Nge2 {[%clk 0:02:54.1]} 6... h5 {[%clk 0:02:51.1]}
7. d4 {[%clk 0:02:54.5]} 7... Ba7 {[%clk 0:02:51.3]} 8. h3 {[%clk 0:02:53.9]}
8... Nf6 {[%clk 0:02:39.7]} 9. dxe5 {[%clk 0:02:48.7]} 9... Nxe5 {[%clk
0:02:38.1]} 10. b3 {[%clk 0:02:26.8]} 10... c6 {[%clk 0:02:34.4]} 11. Ba3 {[%clk
0:02:22.3]} 11... Bc5 {[%clk 0:02:27.4]} 12. Bxc5 {[%clk 0:02:04.4]} 12... dxc5
{[%clk 0:02:28.3]} 13. Qxd8+ {[%clk 0:02:03.9]} 13... Kxd8 {[%clk 0:02:27.7]}
14. O-O-O+ {[%clk 0:02:04.6]} 14... Kc7 {[%clk 0:02:25.8]} 15. f4 {[%clk
0:02:03.7]} 15... Ng6 {[%clk 0:02:22]} 16. e4 {[%clk 0:02:03.6]} 16... b5 {[%clk
0:02:11.7]} 17. e5 {[%clk 0:02:01.3]} 17... Nd7 {[%clk 0:02:10.1]} 18. cxb5
{[%clk 0:02:00.3]} 18... axb5 {[%clk 0:02:09.8]} 19. Nxb5+ {[%clk 0:02:00.2]}
19... Kb6 {[%clk 0:02:07.8]} 20. Nbc3 {[%clk 0:01:54]} 20... c4 {[%clk
0:02:04.6]} 21. b4 {[%clk 0:01:45.4]} 21... Nb8 {[%clk 0:01:56]} 22. Rd6 {[%clk
0:01:38.6]} 22... Bb7 {[%clk 0:01:53.2]} 23. a4 {[%clk 0:01:34.2]} 23... Ne7
{[%clk 0:01:41.2]} 24. a5+ {[%clk 0:01:29.6]} 24... Kc7 {[%clk 0:01:39.6]} 25.
Nd4 {[%clk 0:01:21.8]} 25... Na6 {[%clk 0:01:36]} 26. b5 {[%clk 0:00:54.7]}
26... cxb5 {[%clk 0:01:30]} 27. Ndxb5+ {[%clk 0:00:53.3]} 27... Kb8 {[%clk
0:01:30]} 28. Bxb7 {[%clk 0:00:52.1]} 28... Kxb7 {[%clk 0:01:28.6]} 29. Rd7+
{[%clk 0:00:52.2]} 29... Kc6 {[%clk 0:01:28.1]} 30. Rxe7 {[%clk 0:00:48.2]}
30... Nb4 {[%clk 0:01:28.1]} 31. Rc7# {[%clk 0:00:45.6]} 1-0

[Event "Early-Titled-Tuesday-Blitz-January-23-2024"]
[Site "Chess.com"]
[Date "2024.01.23"]
[Round "11"]
[White "Slovineanu"]
[Black "otrov-11"]
[Result "1-0"]
[WhiteElo "2438"]
[BlackElo "2501"]
[TimeControl "180+1"]
[EndTime "10:05:25 PST"]
[Termination "Slovineanu won by resignation"]

1. d4 {[%clk 0:03:00.9]} 1... Nf6 {[%clk 0:03:00.4]} 2. Nf3 {[%clk 0:02:59.9]}
2... e6 {[%clk 0:03:00.1]} 3. c4 {[%clk 0:02:59.1]} 3... b6 {[%clk 0:03:00]} 4.
e3 {[%clk 0:02:58.7]} 4... Bb7 {[%clk 0:03:00]} 5. Bd3 {[%clk 0:02:59.3]} 5...
Be7 {[%clk 0:03:00.4]} 6. O-O {[%clk 0:02:59.1]} 6... O-O {[%clk 0:03:01]} 7. b3
{[%clk 0:02:58.5]} 7... d5 {[%clk 0:03:01.7]} 8. Bb2 {[%clk 0:02:58.8]} 8...
Nbd7 {[%clk 0:03:00.2]} 9. Nc3 {[%clk 0:02:58.6]} 9... dxc4 {[%clk 0:03:00.6]}
10. bxc4 {[%clk 0:02:58.3]} 10... c5 {[%clk 0:03:01.2]} 11. Qe2 {[%clk
0:02:58.8]} 11... cxd4 {[%clk 0:03:01.3]} 12. exd4 {[%clk 0:02:57.1]} 12... Rc8
{[%clk 0:03:00.9]} 13. Rad1 {[%clk 0:02:53.7]} 13... Re8 {[%clk 0:02:56.1]} 14.
Ne5 {[%clk 0:02:51.7]} 14... Qc7 {[%clk 0:02:56.1]} 15. Nb5 {[%clk 0:02:46]}
15... Qb8 {[%clk 0:02:55]} 16. d5 {[%clk 0:02:37]} 16... exd5 {[%clk 0:02:47.4]}
17. Nxd7 {[%clk 0:01:27.1]} 17... Nxd7 {[%clk 0:02:44.2]} 18. Bf5 {[%clk
0:01:17]} 18... Rcd8 {[%clk 0:02:33.4]} 19. Bxd7 {[%clk 0:01:10.8]} 19... Rxd7
{[%clk 0:02:34.3]} 20. Qg4 {[%clk 0:01:10.3]} 20... Bf8 {[%clk 0:02:05]} 21.
Qxd7 {[%clk 0:01:09.4]} 21... dxc4 {[%clk 0:02:05.7]} 22. Nd6 {[%clk 0:01:05.1]}
22... Bxd6 {[%clk 0:01:57.4]} 23. Qxd6 {[%clk 0:00:59.3]} 23... Qc8 {[%clk
0:01:54.7]} 24. Qd4 {[%clk 0:00:54.9]} 24... f6 {[%clk 0:01:52.2]} 25. Rfe1
{[%clk 0:00:53.2]} 25... Rxe1+ {[%clk 0:01:23.7]} 26. Rxe1 {[%clk 0:00:52.9]}
26... Qc6 {[%clk 0:01:24.6]} 27. f3 {[%clk 0:00:52]} 1-0

[Event "Early-Titled-Tuesday-Blitz-January-23-2024"]
[Site "Chess.com"]
[Date "2024.01.23"]
[Round "11"]
[White "deribas12345"]
[Black "Kostya0705"]
[Result "1-0"]
[WhiteElo "2470"]
[BlackElo "2556"]
[TimeControl "180+1"]
[EndTime "10:05:31 PST"]
[Termination "deribas12345 won by resignation"]

1. d4 {[%clk 0:02:53.6]} 1... Nf6 {[%clk 0:02:58.1]} 2. c4 {[%clk 0:02:53.2]}
2... e6 {[%clk 0:02:56.9]} 3. Nc3 {[%clk 0:02:53.5]} 3... Bb4 {[%clk 0:02:55]}
4. a3 {[%clk 0:02:53.5]} 4... Bxc3+ {[%clk 0:02:54.4]} 5. bxc3 {[%clk
0:02:54.4]} 5... O-O {[%clk 0:02:54.2]} 6. f3 {[%clk 0:02:54.9]} 6... c5 {[%clk
0:02:53.8]} 7. e4 {[%clk 0:02:54.9]} 7... Ne8 {[%clk 0:02:53.1]} 8. Bd3 {[%clk
0:02:53.8]} 8... b6 {[%clk 0:02:52.5]} 9. Ne2 {[%clk 0:02:54.1]} 9... Ba6 {[%clk
0:02:51.7]} 10. O-O {[%clk 0:02:54.2]} 10... Nc6 {[%clk 0:02:49.6]} 11. Be3
{[%clk 0:02:51.9]} 11... d6 {[%clk 0:02:46.8]} 12. f4 {[%clk 0:02:41.1]} 12...
Na5 {[%clk 0:02:45.4]} 13. Ng3 {[%clk 0:02:40]} 13... Rc8 {[%clk 0:02:41.4]} 14.
Qg4 {[%clk 0:02:28.2]} 14... Kh8 {[%clk 0:02:36.5]} 15. Rad1 {[%clk 0:02:23.4]}
15... Bxc4 {[%clk 0:02:34.8]} 16. Bxc4 {[%clk 0:02:20.4]} 16... Nxc4 {[%clk
0:02:35.7]} 17. Bc1 {[%clk 0:02:20.7]} 17... cxd4 {[%clk 0:02:29.7]} 18. cxd4
{[%clk 0:02:16.9]} 18... Nf6 {[%clk 0:02:07.1]} 19. Qh3 {[%clk 0:02:14.8]} 19...
Qe7 {[%clk 0:02:05.1]} 20. f5 {[%clk 0:02:09.4]} 20... Qd7 {[%clk 0:02:02.7]}
21. Bg5 {[%clk 0:02:05.3]} 21... Ng8 {[%clk 0:01:59.5]} 22. f6 {[%clk 0:02:00]}
22... gxf6 {[%clk 0:01:57.9]} 23. Rxf6 {[%clk 0:01:59.1]} 23... Nb2 {[%clk
0:01:46.7]} 24. Rdf1 {[%clk 0:01:57]} 24... Nd3 {[%clk 0:01:37.8]} 25. Nh5
{[%clk 0:01:20.9]} 25... Rc3 {[%clk 0:01:32.6]} 26. R6f3 {[%clk 0:01:11]} 1-0

[Event "Early-Titled-Tuesday-Blitz-January-23-2024"]
[Site "Chess.com"]
[Date "2024.01.23"]
[Round "11"]
[White "ATM622"]
[Black "samirliberec"]
[Result "1-0"]
[WhiteElo "2496"]
[BlackElo "2364"]
[TimeControl "180+1"]
[EndTime "10:05:35 PST"]
[Termination "ATM622 won by resignation"]

1. d4 {[%clk 0:02:59.4]} 1... Nf6 {[%clk 0:02:59.2]} 2. c4 {[%clk 0:02:59.7]}
2... c5 {[%clk 0:02:59.1]} 3. d5 {[%clk 0:02:59.4]} 3... d6 {[%clk 0:02:58.5]}
4. Nc3 {[%clk 0:02:57.8]} 4... g6 {[%clk 0:02:58.6]} 5. g3 {[%clk 0:02:58.3]}
5... Bg7 {[%clk 0:02:58.8]} 6. Bg2 {[%clk 0:02:58.9]} 6... O-O {[%clk 0:02:59]}
7. Nf3 {[%clk 0:02:59.8]} 7... e6 {[%clk 0:02:55.9]} 8. O-O {[%clk 0:03:00.7]}
8... exd5 {[%clk 0:02:53.1]} 9. cxd5 {[%clk 0:03:01.6]} 9... a6 {[%clk
0:02:53.4]} 10. a4 {[%clk 0:03:01]} 10... Nbd7 {[%clk 0:02:52.8]} 11. Bf4 {[%clk
0:02:58.6]} 11... Qe7 {[%clk 0:02:45.5]} 12. Qc2 {[%clk 0:02:41.3]} 12... h6
{[%clk 0:02:42.3]} 13. e4 {[%clk 0:02:14.9]} 13... Nh5 {[%clk 0:02:36]} 14. Be3
{[%clk 0:02:10.2]} 14... Ne5 {[%clk 0:02:28.1]} 15. Nxe5 {[%clk 0:02:05.5]}
15... Bxe5 {[%clk 0:02:27.5]} 16. Bxh6 {[%clk 0:02:04.4]} 16... Re8 {[%clk
0:02:21.1]} 17. Be3 {[%clk 0:02:04.9]} 17... f5 {[%clk 0:02:16.3]} 18. f4 {[%clk
0:02:03.5]} 18... Bd4 {[%clk 0:02:12.7]} 19. Bxd4 {[%clk 0:02:02.3]} 19... cxd4
{[%clk 0:02:12.2]} 20. Ne2 {[%clk 0:02:02.6]} 20... Qf6 {[%clk 0:01:39.8]} 21.
Qd3 {[%clk 0:01:55.5]} 21... fxe4 {[%clk 0:01:33.9]} 22. Bxe4 {[%clk 0:01:56.4]}
22... Bf5 {[%clk 0:01:21.3]} 23. Bxf5 {[%clk 0:01:48.1]} 23... gxf5 {[%clk
0:01:16.3]} 24. Nxd4 {[%clk 0:01:46.1]} 24... Re4 {[%clk 0:01:13.3]} 25. Rad1
{[%clk 0:01:38]} 25... Rae8 {[%clk 0:01:12.2]} 26. Ne6 {[%clk 0:01:29.4]} 26...
Qxb2 {[%clk 0:00:58.4]} 27. Rb1 {[%clk 0:01:29.1]} 27... Qf6 {[%clk 0:00:45]}
28. Rxb7 {[%clk 0:01:24.2]} 28... Re2 {[%clk 0:00:38.4]} 29. Qxe2 {[%clk
0:01:21.6]} 1-0

[Event "Early-Titled-Tuesday-Blitz-January-23-2024"]
[Site "Chess.com"]
[Date "2024.01.23"]
[Round "11"]
[White "Aleksandar-Topalov"]
[Black "chess_blitz00"]
[Result "1-0"]
[WhiteElo "2352"]
[BlackElo "2436"]
[TimeControl "180+1"]
[EndTime "10:05:49 PST"]
[Termination "Aleksandar-Topalov won by resignation"]

1. b3 {[%clk 0:02:57.6]} 1... b6 {[%clk 0:02:59.2]} 2. Bb2 {[%clk 0:02:56.1]}
2... Bb7 {[%clk 0:03:00.1]} 3. Nf3 {[%clk 0:02:56.1]} 3... Nf6 {[%clk
0:03:00.4]} 4. g3 {[%clk 0:02:56.4]} 4... Bxf3 {[%clk 0:03:00.4]} 5. exf3 {[%clk
0:02:56.1]} 5... d5 {[%clk 0:03:00.4]} 6. f4 {[%clk 0:02:56.2]} 6... Nbd7 {[%clk
0:03:00.1]} 7. f5 {[%clk 0:02:55.9]} 7... g6 {[%clk 0:02:58.4]} 8. fxg6 {[%clk
0:02:54.4]} 8... hxg6 {[%clk 0:02:59.3]} 9. Bg2 {[%clk 0:02:54.3]} 9... Bg7
{[%clk 0:02:59.4]} 10. Bxd5 {[%clk 0:02:53.7]} 10... Nxd5 {[%clk 0:02:55.7]} 11.
Bxg7 {[%clk 0:02:52.7]} 11... Rh7 {[%clk 0:02:54.9]} 12. Bb2 {[%clk 0:02:52.4]}
12... N7f6 {[%clk 0:02:52.3]} 13. Nc3 {[%clk 0:02:50]} 13... Nxc3 {[%clk
0:02:49.9]} 14. Bxc3 {[%clk 0:02:49.6]} 14... Qd5 {[%clk 0:02:50.3]} 15. f3
{[%clk 0:02:40.4]} 15... O-O-O {[%clk 0:02:43.1]} 16. Qe2 {[%clk 0:02:40.5]}
16... Rd6 {[%clk 0:02:24.3]} 17. O-O-O {[%clk 0:02:39]} 17... Re6 {[%clk
0:02:24.8]} 18. Qf2 {[%clk 0:02:31.2]} 18... Rh8 {[%clk 0:02:18.9]} 19. h4
{[%clk 0:02:29.2]} 19... Rd8 {[%clk 0:02:18.6]} 20. Rhe1 {[%clk 0:02:27.1]}
20... Rdd6 {[%clk 0:02:16.7]} 21. g4 {[%clk 0:02:20.4]} 21... Rxe1 {[%clk
0:02:08.8]} 22. Rxe1 {[%clk 0:02:19.7]} 22... Re6 {[%clk 0:02:09.3]} 23. Re3
{[%clk 0:02:15.6]} 23... Qc5 {[%clk 0:02:04.5]} 24. Qe2 {[%clk 0:02:11]} 24...
Kd7 {[%clk 0:01:38.1]} 25. Rxe6 {[%clk 0:02:08.8]} 25... fxe6 {[%clk 0:01:39]}
26. Qd3+ {[%clk 0:02:05.4]} 26... Nd5 {[%clk 0:01:38.1]} 27. Bd4 {[%clk
0:01:56.4]} 27... Qa3+ {[%clk 0:00:45.2]} 28. Bb2 {[%clk 0:01:56]} 28... Qc5
{[%clk 0:00:36.4]} 29. c4 {[%clk 0:01:44.6]} 29... Qg1+ {[%clk 0:00:32.4]} 30.
Kc2 {[%clk 0:01:43]} 30... Qc5 {[%clk 0:00:29.7]} 31. Kb1 {[%clk 0:01:40.9]}
31... Qg1+ {[%clk 0:00:29.4]} 32. Bc1 {[%clk 0:01:41.2]} 32... Kc6 {[%clk
0:00:23]} 33. cxd5+ {[%clk 0:01:41.2]} 33... exd5 {[%clk 0:00:23.9]} 34. Qxg6+
{[%clk 0:01:39.2]} 34... Kb5 {[%clk 0:00:24.8]} 35. h5 {[%clk 0:01:37.5]} 35...
c5 {[%clk 0:00:25.7]} 36. Qd3+ {[%clk 0:01:35.7]} 36... c4 {[%clk 0:00:26]} 37.
Qxd5+ {[%clk 0:01:35.6]} 37... Ka6 {[%clk 0:00:26.4]} 38. Qxc4+ {[%clk
0:01:35.7]} 38... Kb7 {[%clk 0:00:27.3]} 1-0

[Event "Early-Titled-Tuesday-Blitz-January-23-2024"]
[Site "Chess.com"]
[Date "2024.01.23"]
[Round "11"]
[White "SpongeBob_03"]
[Black "rionelG"]
[Result "0-1"]
[WhiteElo "2212"]
[BlackElo "2306"]
[TimeControl "180+1"]
[EndTime "10:05:49 PST"]
[Termination "rionelG won by resignation"]

1. e4 {[%clk 0:02:57.8]} 1... c5 {[%clk 0:02:59.9]} 2. Nf3 {[%clk 0:02:53.8]}
2... d6 {[%clk 0:02:59.9]} 3. d4 {[%clk 0:02:53.6]} 3... cxd4 {[%clk 0:03:00.8]}
4. Nxd4 {[%clk 0:02:54.5]} 4... Nf6 {[%clk 0:03:01.4]} 5. Nc3 {[%clk 0:02:54.5]}
5... a6 {[%clk 0:03:02]} 6. Bg5 {[%clk 0:02:47]} 6... e6 {[%clk 0:03:01.6]} 7.
f4 {[%clk 0:02:47.3]} 7... h6 {[%clk 0:03:00.9]} 8. Bh4 {[%clk 0:02:45.7]} 8...
Qb6 {[%clk 0:03:00.7]} 9. Qd2 {[%clk 0:02:44.2]} 9... Qxb2 {[%clk 0:02:58.6]}
10. Rb1 {[%clk 0:02:43.9]} 10... Qa3 {[%clk 0:02:58.4]} 11. e5 {[%clk 0:02:28]}
11... dxe5 {[%clk 0:02:56]} 12. fxe5 {[%clk 0:02:28.9]} 12... Nfd7 {[%clk
0:02:56.4]} 13. Ndb5 {[%clk 0:02:08.1]} 13... axb5 {[%clk 0:02:29.9]} 14. Nxb5
{[%clk 0:02:09]} 14... Qc5 {[%clk 0:02:29.7]} 15. Qd4 {[%clk 0:01:59.1]} 15...
Na6 {[%clk 0:02:15.8]} 16. Rd1 {[%clk 0:01:55.7]} 16... Qxd4 {[%clk 0:02:00.9]}
17. Rxd4 {[%clk 0:01:53.6]} 17... Bc5 {[%clk 0:02:01]} 18. Nd6+ {[%clk
0:01:48.5]} 18... Bxd6 {[%clk 0:01:55.6]} 19. exd6 {[%clk 0:01:49.1]} 19... Nac5
{[%clk 0:01:45.7]} 20. Bb5 {[%clk 0:01:48.2]} 20... Rxa2 {[%clk 0:01:41]} 21.
O-O {[%clk 0:01:46.8]} 21... O-O {[%clk 0:01:40]} 22. Be7 {[%clk 0:01:44.7]}
22... Re8 {[%clk 0:01:39.7]} 23. Rc4 {[%clk 0:01:40.8]} 23... b6 {[%clk
0:01:34.7]} 24. Rcf4 {[%clk 0:01:33.5]} 24... f6 {[%clk 0:01:29]} 25. Rg4 {[%clk
0:01:29.8]} 25... Kf7 {[%clk 0:01:26.9]} 26. Rgf4 {[%clk 0:00:58.1]} 26... Ba6
{[%clk 0:01:09.2]} 27. Bxd7 {[%clk 0:00:42.8]} 27... Nxd7 {[%clk 0:01:10.1]} 28.
Rb1 {[%clk 0:00:42.2]} 28... Rc8 {[%clk 0:01:03.3]} 0-1